[Event "Early-Titled-Tuesday-Blitz-October-24-2023"]
[Site "Chess.com"]
[Date "2023.10.24"]
[Round "5"]
[White "vladgoncharov"]
[Black "Cambek64"]
[Result "1-0"]
[WhiteElo "2590"]
[BlackElo "2444"]
[TimeControl "180+1"]
[EndTime "8:55:27 PDT"]
[Termination "vladgoncharov won on time"]

1. d4 {[%clk 0:03:00.9]} 1... d6 {[%clk 0:02:59.2]} 2. Nf3 {[%clk 0:02:58.6]}
2... Nf6 {[%clk 0:02:58.3]} 3. c4 {[%clk 0:02:57.5]} 3... g6 {[%clk 0:02:58.9]}
4. Nc3 {[%clk 0:02:57]} 4... Bg7 {[%clk 0:02:59.5]} 5. Bg5 {[%clk 0:02:57.2]}
5... O-O {[%clk 0:02:59.7]} 6. e3 {[%clk 0:02:56.9]} 6... h6 {[%clk 0:02:55.5]}
7. Bh4 {[%clk 0:02:56.6]} 7... Nbd7 {[%clk 0:02:50.6]} 8. Be2 {[%clk 0:02:55.5]}
8... c6 {[%clk 0:02:42.6]} 9. Qc2 {[%clk 0:02:49.4]} 9... Qe8 {[%clk 0:02:34.4]}
10. O-O {[%clk 0:02:42.1]} 10... e5 {[%clk 0:02:34.8]} 11. dxe5 {[%clk
0:02:39.1]} 11... dxe5 {[%clk 0:02:32.9]} 12. Nd2 {[%clk 0:02:36.9]} 12... g5
{[%clk 0:02:21.5]} 13. Bg3 {[%clk 0:02:36.1]} 13... Qe7 {[%clk 0:02:20.8]} 14.
Rad1 {[%clk 0:02:31]} 14... a5 {[%clk 0:02:19.2]} 15. a3 {[%clk 0:02:20.2]}
15... Re8 {[%clk 0:02:13.2]} 16. h3 {[%clk 0:02:10.6]} 16... Nc5 {[%clk
0:02:09.4]} 17. b4 {[%clk 0:02:05.7]} 17... axb4 {[%clk 0:02:09.4]} 18. axb4
{[%clk 0:02:05.1]} 18... Na6 {[%clk 0:02:05.9]} 19. b5 {[%clk 0:02:05]} 19...
Nc5 {[%clk 0:02:03.8]} 20. Bh2 {[%clk 0:01:49.1]} 20... e4 {[%clk 0:02:01.2]}
21. Ndb1 {[%clk 0:01:24.7]} 21... Nfd7 {[%clk 0:01:49.7]} 22. Bg4 {[%clk
0:01:12.9]} 22... Ra1 {[%clk 0:00:47]} 23. Bd6 {[%clk 0:01:06.4]} 23... Qf6
{[%clk 0:00:45]} 24. Bxc5 {[%clk 0:01:06.3]} 24... Nxc5 {[%clk 0:00:43.2]} 25.
Bxc8 {[%clk 0:01:06.5]} 25... Rxc8 {[%clk 0:00:38.3]} 26. Nxe4 {[%clk
0:01:06.3]} 26... Qg6 {[%clk 0:00:27]} 27. Nbd2 {[%clk 0:01:05.6]} 27... Rxd1
{[%clk 0:00:18.6]} 28. Rxd1 {[%clk 0:01:04.5]} 28... Rd8 {[%clk 0:00:18.4]} 29.
f3 {[%clk 0:01:02]} 29... Nxe4 {[%clk 0:00:17.6]} 30. Nxe4 {[%clk 0:01:01.8]}
30... Rxd1+ {[%clk 0:00:16.9]} 31. Qxd1 {[%clk 0:01:01.9]} 31... cxb5 {[%clk
0:00:16.1]} 32. cxb5 {[%clk 0:00:57]} 32... Qb6 {[%clk 0:00:15.6]} 33. Qd3
{[%clk 0:00:56.6]} 33... f5 {[%clk 0:00:12.3]} 34. Qd5+ {[%clk 0:00:51.7]} 34...
Kh8 {[%clk 0:00:11.7]} 35. Qxf5 {[%clk 0:00:48]} 35... Qxe3+ {[%clk 0:00:12.1]}
36. Kh2 {[%clk 0:00:48.1]} 36... Qb6 {[%clk 0:00:11.2]} 37. h4 {[%clk
0:00:46.2]} 37... gxh4 {[%clk 0:00:10.1]} 38. Qg4 {[%clk 0:00:43.9]} 38... Qxb5
{[%clk 0:00:09.3]} 39. Kh3 {[%clk 0:00:43.1]} 39... Qc6 {[%clk 0:00:07.7]} 40.
Qxh4 {[%clk 0:00:41.4]} 40... b5 {[%clk 0:00:08.3]} 41. Qd8+ {[%clk 0:00:40.6]}
41... Kh7 {[%clk 0:00:07.4]} 42. Qe7 {[%clk 0:00:39.7]} 42... Qg6 {[%clk
0:00:04.4]} 43. g4 {[%clk 0:00:34.7]} 43... Qc6 {[%clk 0:00:03.4]} 44. g5 {[%clk
0:00:33]} 44... hxg5 {[%clk 0:00:02.7]} 45. Nxg5+ {[%clk 0:00:32.5]} 45... Kg6
{[%clk 0:00:02.6]} 46. Ne4 {[%clk 0:00:26.7]} 46... Qd5 {[%clk 0:00:01.3]} 47.
Qe8+ {[%clk 0:00:24.5]} 1-0

[Event "Early-Titled-Tuesday-Blitz-October-24-2023"]
[Site "Chess.com"]
[Date "2023.10.24"]
[Round "5"]
[White "ylr5000"]
[Black "Keeper0416"]
[Result "0-1"]
[WhiteElo "2437"]
[BlackElo "2584"]
[TimeControl "180+1"]
[EndTime "8:55:27 PDT"]
[Termination "Keeper0416 won by resignation"]

1. d4 {[%clk 0:03:00.9]} 1... Nf6 {[%clk 0:02:59.9]} 2. c4 {[%clk 0:03:01.2]}
2... g6 {[%clk 0:03:00.1]} 3. Nc3 {[%clk 0:03:01.3]} 3... Bg7 {[%clk 0:03:00.6]}
4. e4 {[%clk 0:03:01.4]} 4... d6 {[%clk 0:03:01.1]} 5. Be2 {[%clk 0:03:02]} 5...
O-O {[%clk 0:03:01.8]} 6. Bg5 {[%clk 0:03:02.4]} 6... c5 {[%clk 0:03:02.1]} 7.
d5 {[%clk 0:03:02.6]} 7... e6 {[%clk 0:03:00.7]} 8. Qd2 {[%clk 0:03:01.2]} 8...
exd5 {[%clk 0:03:00.9]} 9. exd5 {[%clk 0:03:01.7]} 9... Nbd7 {[%clk 0:02:59.6]}
10. Nf3 {[%clk 0:03:01.1]} 10... Qb6 {[%clk 0:02:55.4]} 11. O-O {[%clk
0:02:54.5]} 11... Re8 {[%clk 0:02:55.4]} 12. h3 {[%clk 0:02:35.9]} 12... a6
{[%clk 0:02:53.1]} 13. Bd3 {[%clk 0:02:18.3]} 13... Ne5 {[%clk 0:02:20.3]} 14.
Nxe5 {[%clk 0:02:16.4]} 14... Rxe5 {[%clk 0:02:19.5]} 15. Bf4 {[%clk 0:02:15.8]}
15... Re8 {[%clk 0:02:17.8]} 16. Rae1 {[%clk 0:02:15.5]} 16... Bd7 {[%clk
0:02:17.1]} 17. Qc2 {[%clk 0:02:01.4]} 17... Rxe1 {[%clk 0:02:04.3]} 18. Rxe1
{[%clk 0:02:01.3]} 18... Re8 {[%clk 0:02:05.2]} 19. Rxe8+ {[%clk 0:02:01.6]}
19... Nxe8 {[%clk 0:02:05.1]} 20. b3 {[%clk 0:01:59.7]} 20... Be5 {[%clk
0:02:05.2]} 21. Bd2 {[%clk 0:01:54.7]} 21... Qd8 {[%clk 0:02:04.6]} 22. Ne4
{[%clk 0:01:52.4]} 22... f5 {[%clk 0:02:04.3]} 23. Ng5 {[%clk 0:01:52]} 23...
Ng7 {[%clk 0:02:02.9]} 24. Nf3 {[%clk 0:01:50.2]} 24... Bf6 {[%clk 0:01:59.1]}
25. Bf4 {[%clk 0:01:48.3]} 25... Qe7 {[%clk 0:01:59.1]} 26. Qe2 {[%clk
0:01:45.4]} 26... Qxe2 {[%clk 0:01:55.7]} 27. Bxe2 {[%clk 0:01:46.3]} 27... Ne8
{[%clk 0:01:55.8]} 28. h4 {[%clk 0:01:45]} 28... Kg7 {[%clk 0:01:50.1]} 29. a4
{[%clk 0:01:38.1]} 29... h6 {[%clk 0:01:49.1]} 30. g3 {[%clk 0:01:33.4]} 30...
Be7 {[%clk 0:01:49.4]} 31. Bd3 {[%clk 0:01:30.9]} 31... Nf6 {[%clk 0:01:49.9]}
32. Kf1 {[%clk 0:01:30.3]} 32... b5 {[%clk 0:01:35.1]} 33. axb5 {[%clk 0:01:30]}
33... axb5 {[%clk 0:01:35.6]} 34. Ke2 {[%clk 0:01:29.8]} 34... bxc4 {[%clk
0:01:33.7]} 35. bxc4 {[%clk 0:01:30.4]} 35... Be8 {[%clk 0:01:31.3]} 36. Nd2
{[%clk 0:01:23.6]} 36... Ba4 {[%clk 0:01:30.8]} 37. Nb1 {[%clk 0:01:17.5]} 37...
Ng4 {[%clk 0:01:28]} 38. Nc3 {[%clk 0:01:16.2]} 38... Be8 {[%clk 0:01:26.3]} 39.
Nb5 {[%clk 0:01:12.1]} 39... Ne5 {[%clk 0:01:26]} 40. h5 {[%clk 0:00:57.9]}
40... gxh5 {[%clk 0:00:54.1]} 41. Bxe5+ {[%clk 0:00:55.5]} 41... dxe5 {[%clk
0:00:54]} 42. Bxf5 {[%clk 0:00:54.3]} 42... Kf6 {[%clk 0:00:49.9]} 43. Bh3
{[%clk 0:00:52.6]} 43... e4 {[%clk 0:00:46.5]} 44. f4 {[%clk 0:00:35.2]} 44...
exf3+ {[%clk 0:00:45.3]} 45. Kxf3 {[%clk 0:00:35.7]} 45... Ke5 {[%clk
0:00:46.2]} 46. Ke3 {[%clk 0:00:25.3]} 46... h4 {[%clk 0:00:39.5]} 47. gxh4
{[%clk 0:00:24.8]} 47... Bxh4 {[%clk 0:00:40.4]} 48. Nc3 {[%clk 0:00:20.4]}
48... Bg5+ {[%clk 0:00:39]} 49. Kf3 {[%clk 0:00:20.4]} 49... Bh5+ {[%clk
0:00:39.3]} 50. Bg4 {[%clk 0:00:20.4]} 50... Bg6 {[%clk 0:00:40.2]} 51. Nb5
{[%clk 0:00:19.6]} 51... Be7 {[%clk 0:00:39.6]} 52. Be6 {[%clk 0:00:17.3]} 52...
Bd3 {[%clk 0:00:37.2]} 53. Na3 {[%clk 0:00:14]} 53... h5 {[%clk 0:00:35.2]} 54.
Ke3 {[%clk 0:00:14.1]} 54... Bf1 {[%clk 0:00:34.4]} 55. Kf2 {[%clk 0:00:14]}
55... Bd3 {[%clk 0:00:34.2]} 56. Ke3 {[%clk 0:00:14.5]} 56... Be4 {[%clk
0:00:33.5]} 57. Kd2 {[%clk 0:00:11.8]} 57... h4 {[%clk 0:00:33.9]} 58. Kc3
{[%clk 0:00:11.5]} 58... Bg2 {[%clk 0:00:32.6]} 59. Nb5 {[%clk 0:00:11.5]} 59...
h3 {[%clk 0:00:32.5]} 60. Bxh3 {[%clk 0:00:11.9]} 60... Bxh3 {[%clk 0:00:33.4]}
61. Kb3 {[%clk 0:00:11.9]} 0-1

[Event "Early-Titled-Tuesday-Blitz-October-24-2023"]
[Site "Chess.com"]
[Date "2023.10.24"]
[Round "5"]
[White "Politov_Pavel"]
[Black "LaPiToB"]
[Result "0-1"]
[WhiteElo "2041"]
[BlackElo "2275"]
[TimeControl "180+1"]
[EndTime "8:55:27 PDT"]
[Termination "LaPiToB won on time"]

1. d4 {[%clk 0:03:00.9]} 1... Nf6 {[%clk 0:02:55.9]} 2. c4 {[%clk 0:03:00]} 2...
e6 {[%clk 0:02:54.8]} 3. Nc3 {[%clk 0:02:57.7]} 3... Bb4 {[%clk 0:02:54.2]} 4.
f3 {[%clk 0:02:54.7]} 4... c5 {[%clk 0:02:50.9]} 5. d5 {[%clk 0:02:54.1]} 5...
d6 {[%clk 0:02:48.8]} 6. e4 {[%clk 0:02:44.7]} 6... O-O {[%clk 0:02:48]} 7. Ne2
{[%clk 0:02:38.6]} 7... b5 {[%clk 0:02:36.9]} 8. a3 {[%clk 0:02:29.8]} 8...
Bxc3+ {[%clk 0:02:30.7]} 9. Nxc3 {[%clk 0:02:27.4]} 9... bxc4 {[%clk 0:02:20.9]}
10. Bxc4 {[%clk 0:02:28.3]} 10... exd5 {[%clk 0:02:20.4]} 11. Bxd5 {[%clk
0:02:19.1]} 11... Nxd5 {[%clk 0:02:06.1]} 12. Qxd5 {[%clk 0:02:16.9]} 12... Qb6
{[%clk 0:02:05.4]} 13. Qxa8 {[%clk 0:01:50.1]} 13... Bb7 {[%clk 0:01:44.1]} 14.
Nd5 {[%clk 0:01:13.4]} 14... Qa6 {[%clk 0:01:41.7]} 15. Nc7 {[%clk 0:01:09.6]}
15... Qa5+ {[%clk 0:01:40.7]} 16. Bd2 {[%clk 0:01:07]} 16... Qxc7 {[%clk
0:01:39.3]} 17. Qxa7 {[%clk 0:01:05.9]} 17... Nc6 {[%clk 0:01:37.9]} 18. Qa4
{[%clk 0:01:03.2]} 18... Nd4 {[%clk 0:01:34.4]} 19. O-O {[%clk 0:01:01.9]} 19...
Bc6 {[%clk 0:01:32]} 20. Qd1 {[%clk 0:00:54.3]} 20... Bb5 {[%clk 0:01:23.2]} 21.
Re1 {[%clk 0:00:53.3]} 21... Bc4 {[%clk 0:01:18.1]} 22. Be3 {[%clk 0:00:38.9]}
22... Bb3 {[%clk 0:01:12.5]} 23. Qd3 {[%clk 0:00:29.2]} 23... Bc2 {[%clk
0:01:02.1]} 24. Qc3 {[%clk 0:00:25.6]} 24... Rc8 {[%clk 0:00:45.9]} 25. Bxd4
{[%clk 0:00:23.6]} 25... cxd4 {[%clk 0:00:45.9]} 26. Qxc7 {[%clk 0:00:22.3]}
26... Rxc7 {[%clk 0:00:45.6]} 27. Re2 {[%clk 0:00:19.4]} 27... d3 {[%clk
0:00:45.1]} 28. Rd2 {[%clk 0:00:19.6]} 28... Kf8 {[%clk 0:00:43.3]} 29. b4
{[%clk 0:00:15.6]} 29... Ra7 {[%clk 0:00:42.9]} 30. Kf2 {[%clk 0:00:14.1]} 30...
Ke7 {[%clk 0:00:42.5]} 31. a4 {[%clk 0:00:12.3]} 31... Kd7 {[%clk 0:00:40]} 32.
b5 {[%clk 0:00:06.8]} 32... Ra5 {[%clk 0:00:37.9]} 33. Ra3 {[%clk 0:00:04.5]}
33... Kc7 {[%clk 0:00:36.1]} 34. Rc3+ {[%clk 0:00:03.8]} 34... Kd7 {[%clk
0:00:33.3]} 35. b6 {[%clk 0:00:04]} 35... Rxa4 {[%clk 0:00:28.5]} 36. Rc7+
{[%clk 0:00:03.7]} 36... Ke6 {[%clk 0:00:27.9]} 37. b7 {[%clk 0:00:03.7]} 37...
Rb4 {[%clk 0:00:28.1]} 38. Ke3 {[%clk 0:00:03.2]} 38... Rb3 {[%clk 0:00:20.6]}
39. f4 {[%clk 0:00:02.9]} 39... g6 {[%clk 0:00:20]} 40. g4 {[%clk 0:00:02.3]}
40... h6 {[%clk 0:00:16]} 41. f5+ {[%clk 0:00:01.8]} 41... gxf5 {[%clk
0:00:16.2]} 42. exf5+ {[%clk 0:00:01.3]} 42... Kf6 {[%clk 0:00:16.1]} 43. Kd4
{[%clk 0:00:01.2]} 43... Rb5 {[%clk 0:00:10.7]} 0-1

[Event "Early-Titled-Tuesday-Blitz-October-24-2023"]
[Site "Chess.com"]
[Date "2023.10.24"]
[Round "5"]
[White "Mr_Lion22"]
[Black "Nekoo04"]
[Result "1-0"]
[WhiteElo "2483"]
[BlackElo "2284"]
[TimeControl "180+1"]
[EndTime "8:55:28 PDT"]
[Termination "Mr_Lion22 won by resignation"]

1. d4 {[%clk 0:03:00.9]} 1... d5 {[%clk 0:02:58.6]} 2. c4 {[%clk 0:03:01.3]}
2... e6 {[%clk 0:02:58.7]} 3. Nc3 {[%clk 0:03:01.8]} 3... c6 {[%clk 0:02:58.4]}
4. e4 {[%clk 0:03:01.4]} 4... dxe4 {[%clk 0:02:59.3]} 5. Nxe4 {[%clk 0:03:02.2]}
5... Bb4+ {[%clk 0:02:59.1]} 6. Bd2 {[%clk 0:03:02.8]} 6... Qxd4 {[%clk
0:02:59.6]} 7. Bxb4 {[%clk 0:03:03]} 7... Qxe4+ {[%clk 0:03:00.1]} 8. Be2 {[%clk
0:03:03.7]} 8... Na6 {[%clk 0:02:58]} 9. Ba5 {[%clk 0:03:04.3]} 9... b6 {[%clk
0:02:53.4]} 10. Qd6 {[%clk 0:03:04.9]} 10... Bd7 {[%clk 0:02:38.7]} 11. O-O-O
{[%clk 0:02:33]} 11... O-O-O {[%clk 0:02:37.7]} 12. Bc3 {[%clk 0:02:32.9]} 12...
Nf6 {[%clk 0:02:36]} 13. Bf3 {[%clk 0:02:31.1]} 13... Qxc4 {[%clk 0:02:33.3]}
14. Kb1 {[%clk 0:02:26.6]} 14... Ne4 {[%clk 0:02:07.8]} 15. Bxe4 {[%clk
0:02:02.5]} 15... Qxe4+ {[%clk 0:02:08.7]} 16. Ka1 {[%clk 0:02:02.9]} 16... f6
{[%clk 0:01:37.6]} 17. Nf3 {[%clk 0:02:02.1]} 17... e5 {[%clk 0:01:32.1]} 18.
Rhe1 {[%clk 0:01:56.4]} 18... Qc4 {[%clk 0:01:29.6]} 19. Rc1 {[%clk 0:01:31.4]}
19... Be6 {[%clk 0:01:23.7]} 20. Qa3 {[%clk 0:01:31.7]} 20... Qb5 {[%clk
0:01:04.7]} 21. Bxe5 {[%clk 0:00:49.5]} 21... fxe5 {[%clk 0:00:40.4]} 22. Nxe5
{[%clk 0:00:50.4]} 22... Bd5 {[%clk 0:00:30]} 23. Nxc6 {[%clk 0:00:11.2]} 23...
Bxc6 {[%clk 0:00:26.4]} 24. Re6 {[%clk 0:00:11.9]} 24... Kb7 {[%clk 0:00:13.3]}
25. Qc3 {[%clk 0:00:06.7]} 25... Nb4 {[%clk 0:00:11.1]} 26. a3 {[%clk 0:00:06]}
26... Rd3 {[%clk 0:00:07.8]} 27. Qxg7+ {[%clk 0:00:06.2]} 27... Ka6 {[%clk
0:00:05.6]} 28. Qxh8 {[%clk 0:00:04.3]} 28... Rxa3+ {[%clk 0:00:04.3]} 29. bxa3
{[%clk 0:00:04.4]} 29... Qa4 {[%clk 0:00:04.7]} 30. Qb2 {[%clk 0:00:04.9]} 30...
Nd3 {[%clk 0:00:04.2]} 31. Qc3 {[%clk 0:00:04.2]} 31... Nc5 {[%clk 0:00:01.8]}
32. Qc4+ {[%clk 0:00:03.9]} 32... Qxc4 {[%clk 0:00:02.1]} 33. Rxc4 {[%clk
0:00:04.8]} 33... Bd5 {[%clk 0:00:03]} 34. Rxc5 {[%clk 0:00:04.8]} 34... Bxe6
{[%clk 0:00:01.7]} 35. Rh5 {[%clk 0:00:05.4]} 35... Bg8 {[%clk 0:00:01.6]} 36.
Rg5 {[%clk 0:00:05.5]} 36... Bf7 {[%clk 0:00:01.4]} 37. Rg7 {[%clk 0:00:05.7]}
37... Bg6 {[%clk 0:00:02.1]} 38. f4 {[%clk 0:00:05.9]} 38... b5 {[%clk
0:00:02.6]} 39. g4 {[%clk 0:00:06.5]} 39... Ka5 {[%clk 0:00:02.4]} 40. f5 {[%clk
0:00:07.1]} 40... Be8 {[%clk 0:00:02.3]} 41. f6 {[%clk 0:00:07.8]} 1-0

[Event "Early-Titled-Tuesday-Blitz-October-24-2023"]
[Site "Chess.com"]
[Date "2023.10.24"]
[Round "5"]
[White "Russian_berezka"]
[Black "Rud_Makarian"]
[Result "0-1"]
[WhiteElo "2691"]
[BlackElo "2964"]
[TimeControl "180+1"]
[EndTime "8:55:29 PDT"]
[Termination "Rud_Makarian won on time"]

1. d4 {[%clk 0:03:00.9]} 1... Nf6 {[%clk 0:03:00]} 2. c4 {[%clk 0:03:00.4]} 2...
e6 {[%clk 0:03:00.3]} 3. Nf3 {[%clk 0:03:00.4]} 3... d5 {[%clk 0:03:01.2]} 4.
Nc3 {[%clk 0:03:00.3]} 4... Nbd7 {[%clk 0:03:00.3]} 5. cxd5 {[%clk 0:02:57]}
5... exd5 {[%clk 0:03:01.2]} 6. Bg5 {[%clk 0:02:57.3]} 6... c6 {[%clk
0:03:00.8]} 7. e3 {[%clk 0:02:57.4]} 7... h6 {[%clk 0:03:01.4]} 8. Bh4 {[%clk
0:02:56.9]} 8... Be7 {[%clk 0:02:55.5]} 9. Bd3 {[%clk 0:02:52]} 9... O-O {[%clk
0:02:56]} 10. Qc2 {[%clk 0:02:48.8]} 10... Re8 {[%clk 0:02:56]} 11. O-O {[%clk
0:02:46.2]} 11... Ne4 {[%clk 0:02:56.1]} 12. Bxe7 {[%clk 0:02:43.8]} 12... Qxe7
{[%clk 0:02:57]} 13. Rab1 {[%clk 0:02:40.7]} 13... Ndf6 {[%clk 0:02:54.4]} 14.
Ne5 {[%clk 0:02:33.3]} 14... Bf5 {[%clk 0:02:54.3]} 15. b4 {[%clk 0:02:14.1]}
15... Nxc3 {[%clk 0:02:53.3]} 16. Qxc3 {[%clk 0:02:13]} 16... Bxd3 {[%clk
0:02:51.3]} 17. Qxd3 {[%clk 0:02:10.2]} 17... a6 {[%clk 0:02:47.6]} 18. a4
{[%clk 0:02:09.6]} 18... Ne4 {[%clk 0:02:47.4]} 19. Rfc1 {[%clk 0:01:25.9]}
19... Nd6 {[%clk 0:02:44.1]} 20. Qe2 {[%clk 0:01:15.7]} 20... g6 {[%clk
0:02:41]} 21. Qf3 {[%clk 0:01:13.8]} 21... Kg7 {[%clk 0:02:40]} 22. g3 {[%clk
0:01:08.4]} 22... h5 {[%clk 0:02:39.5]} 23. h4 {[%clk 0:01:08.3]} 23... Qe6
{[%clk 0:02:37.8]} 24. Kg2 {[%clk 0:01:07.1]} 24... Re7 {[%clk 0:02:38]} 25. Nd3
{[%clk 0:01:06]} 25... Rae8 {[%clk 0:02:29.7]} 26. Nc5 {[%clk 0:01:01.8]} 26...
Qf6 {[%clk 0:02:24.2]} 27. Rc2 {[%clk 0:00:53.9]} 27... Qxf3+ {[%clk 0:02:18.9]}
28. Kxf3 {[%clk 0:00:54.8]} 28... f6 {[%clk 0:02:19.2]} 29. Re1 {[%clk
0:00:42.3]} 29... g5 {[%clk 0:02:17.3]} 30. Kg2 {[%clk 0:00:39.3]} 30... Kg6
{[%clk 0:02:16.4]} 31. hxg5 {[%clk 0:00:38.4]} 31... fxg5 {[%clk 0:02:16.7]} 32.
Rce2 {[%clk 0:00:37.6]} 32... Kf5 {[%clk 0:02:09.8]} 33. f3 {[%clk 0:00:36.5]}
33... Kg6 {[%clk 0:01:57.9]} 34. a5 {[%clk 0:00:34.7]} 34... Nf5 {[%clk
0:01:47.7]} 35. Kf2 {[%clk 0:00:33.8]} 35... g4 {[%clk 0:01:47.2]} 36. Nd3
{[%clk 0:00:24.5]} 36... gxf3 {[%clk 0:01:37.5]} 37. Nf4+ {[%clk 0:00:22.5]}
37... Kh6 {[%clk 0:01:23]} 38. Kxf3 {[%clk 0:00:23.4]} 38... Rg8 {[%clk
0:01:21.6]} 39. Rg1 {[%clk 0:00:21.5]} 39... Reg7 {[%clk 0:01:19.9]} 40. Reg2
{[%clk 0:00:21.4]} 40... Rg4 {[%clk 0:01:17.4]} 41. Kf2 {[%clk 0:00:14.8]} 41...
Nd6 {[%clk 0:01:14.6]} 42. Rh1 {[%clk 0:00:06.6]} 42... Ne4+ {[%clk 0:01:14.2]}
43. Kf3 {[%clk 0:00:05.6]} 43... Rxg3+ {[%clk 0:01:11]} 44. Rxg3 {[%clk
0:00:06.1]} 44... Rxg3+ {[%clk 0:01:11.2]} 45. Ke2 {[%clk 0:00:06.9]} 45... Rg5
{[%clk 0:01:03.2]} 46. Kf3 {[%clk 0:00:06.9]} 46... Rg3+ {[%clk 0:00:53.5]} 47.
Ke2 {[%clk 0:00:06.9]} 47... Nf6 {[%clk 0:00:53.7]} 48. Kd3 {[%clk 0:00:02.6]}
48... Kg5 {[%clk 0:00:51.2]} 49. Ne6+ {[%clk 0:00:02.8]} 49... Kf5 {[%clk
0:00:46.8]} 50. Nc5 {[%clk 0:00:03.7]} 50... Kg5 {[%clk 0:00:33.1]} 51. Nxb7
{[%clk 0:00:03]} 51... Ng4 {[%clk 0:00:33.8]} 52. Re1 {[%clk 0:00:03.3]} 52...
h4 {[%clk 0:00:33.3]} 53. Nc5 {[%clk 0:00:03.3]} 53... h3 {[%clk 0:00:33.9]} 54.
Nxa6 {[%clk 0:00:03.1]} 54... h2 {[%clk 0:00:34.4]} 55. Nc5 {[%clk 0:00:02.4]}
55... Rg1 {[%clk 0:00:34]} 0-1

[Event "Early-Titled-Tuesday-Blitz-October-24-2023"]
[Site "Chess.com"]
[Date "2023.10.24"]
[Round "5"]
[White "Alina_Gumerovna"]
[Black "Savagelittlemole"]
[Result "0-1"]
[WhiteElo "2099"]
[BlackElo "2517"]
[TimeControl "180+1"]
[EndTime "8:55:30 PDT"]
[Termination "Savagelittlemole won by resignation"]

1. e4 {[%clk 0:03:00]} 1... c5 {[%clk 0:02:59.7]} 2. Nf3 {[%clk 0:02:57.6]} 2...
d6 {[%clk 0:03:00.3]} 3. d4 {[%clk 0:02:57.7]} 3... cxd4 {[%clk 0:03:01.2]} 4.
Nxd4 {[%clk 0:02:58.5]} 4... Nf6 {[%clk 0:03:01.9]} 5. f3 {[%clk 0:02:58.1]}
5... e5 {[%clk 0:03:01.3]} 6. Nb3 {[%clk 0:02:58.6]} 6... Be7 {[%clk 0:02:58.7]}
7. c4 {[%clk 0:02:58.7]} 7... O-O {[%clk 0:02:59]} 8. Nc3 {[%clk 0:02:58.8]}
8... Be6 {[%clk 0:02:56.5]} 9. Be3 {[%clk 0:02:53.6]} 9... Qd7 {[%clk
0:02:44.5]} 10. Be2 {[%clk 0:02:47]} 10... Rc8 {[%clk 0:02:44.5]} 11. Nd2 {[%clk
0:02:47.1]} 11... a6 {[%clk 0:02:36.2]} 12. O-O {[%clk 0:02:45.4]} 12... Bd8
{[%clk 0:02:20.5]} 13. Rc1 {[%clk 0:02:43.4]} 13... Nc6 {[%clk 0:02:17.1]} 14.
b3 {[%clk 0:02:34.9]} 14... Nd4 {[%clk 0:02:07.1]} 15. Bxd4 {[%clk 0:02:21.2]}
15... exd4 {[%clk 0:02:08]} 16. Nd5 {[%clk 0:02:12.5]} 16... Bxd5 {[%clk
0:02:06.5]} 17. exd5 {[%clk 0:01:51.5]} 17... Bb6 {[%clk 0:02:02.5]} 18. Bd3
{[%clk 0:01:51.3]} 18... Re8 {[%clk 0:02:02.1]} 19. Qc2 {[%clk 0:01:41.5]} 19...
Re3 {[%clk 0:01:58.9]} 20. Rfd1 {[%clk 0:01:34.9]} 20... Rae8 {[%clk 0:01:56.9]}
21. Nf1 {[%clk 0:01:35.1]} 21... R3e5 {[%clk 0:01:53.6]} 22. b4 {[%clk
0:01:31.1]} 22... Ba7 {[%clk 0:01:45.8]} 23. f4 {[%clk 0:01:06.8]} 23... Re4
{[%clk 0:01:36.9]} 24. Qf2 {[%clk 0:00:56.8]} 24... Ng4 {[%clk 0:01:12.2]} 25.
Qf3 {[%clk 0:00:47.2]} 25... f5 {[%clk 0:01:12.2]} 26. c5 {[%clk 0:00:34.6]}
26... dxc5 {[%clk 0:01:09.1]} 27. bxc5 {[%clk 0:00:35.5]} 27... Ne3 {[%clk
0:01:04.7]} 28. Bxe4 {[%clk 0:00:26.3]} 28... fxe4 {[%clk 0:01:00.9]} 29. Qh5
{[%clk 0:00:21]} 29... Nxd1 {[%clk 0:00:57.9]} 30. Rxd1 {[%clk 0:00:21.9]} 30...
Bxc5 {[%clk 0:00:57]} 31. Ng3 {[%clk 0:00:16.6]} 31... g6 {[%clk 0:00:50.7]} 32.
Qg5 {[%clk 0:00:16.4]} 32... d3+ {[%clk 0:00:41.2]} 33. Kh1 {[%clk 0:00:15.3]}
33... e3 {[%clk 0:00:41.7]} 34. Rxd3 {[%clk 0:00:10.6]} 34... e2 {[%clk
0:00:41.6]} 35. Nxe2 {[%clk 0:00:08.3]} 35... Rxe2 {[%clk 0:00:42.5]} 36. h3
{[%clk 0:00:06.3]} 36... Re1+ {[%clk 0:00:34.3]} 37. Kh2 {[%clk 0:00:05.8]}
37... Bg1+ {[%clk 0:00:34.5]} 38. Kg3 {[%clk 0:00:06.1]} 38... Re3+ {[%clk
0:00:29.5]} 39. Rxe3 {[%clk 0:00:05.8]} 39... Bxe3 {[%clk 0:00:30.4]} 40. Qe5
{[%clk 0:00:06.1]} 40... Bc5 {[%clk 0:00:25.1]} 41. a4 {[%clk 0:00:03.6]} 41...
Bd6 {[%clk 0:00:24.9]} 42. Qe4 {[%clk 0:00:02.3]} 42... g5 {[%clk 0:00:22]} 43.
Kf3 {[%clk 0:00:02.4]} 43... Bxf4 {[%clk 0:00:21.2]} 44. a5 {[%clk 0:00:02.6]}
44... Bd6 {[%clk 0:00:15.8]} 45. Qc4 {[%clk 0:00:02.7]} 45... Qf5+ {[%clk
0:00:15.1]} 46. Ke2 {[%clk 0:00:03]} 46... Qe5+ {[%clk 0:00:13.3]} 47. Kf1
{[%clk 0:00:03.3]} 47... Qf4+ {[%clk 0:00:13.7]} 48. Qxf4 {[%clk 0:00:03.7]}
48... Bxf4 {[%clk 0:00:14.6]} 0-1